fUST/lending_fUST_20250123
["ID","MTS","AMOUNT","RATE_DAILY","PERIOD"]
[350020494,1737571839144,-567.96447367,0.0001918,2]
[350020495,1737571839154,-500.0,0.0001918,2]
[350020496,1737571839163,-500.0,0.0001918,2]
[350020497,1737571839172,-500.0,0.0001918,2]
[350020498,1737571839182,-500.0,0.0001918,2]
[350020499,1737571839191,-500.0,0.0001918,2]
[350020500,1737571839201,-500.0,0.0001918,2]
[350020501,1737571839210,-500.0,0.0001918,2]
[350020502,1737571839219,-500.0,0.0001918,2]
[350020503,1737571839229,-500.0,0.0001918,2]
[350020504,1737571839239,-486.14491826,0.0001918,2]
[350020505,1737571839248,-500.0,0.0001918,2]
[350020506,1737571839258,-500.0,0.0001918,2]
[350020507,1737571839267,-500.0,0.0001918,2]
[350020508,1737571839277,-500.0,0.0001918,2]
[350020509,1737571839287,-500.0,0.0001918,2]
[350020510,1737571839297,-500.0,0.0001918,2]
[350020511,1737571839306,-500.0,0.0001918,2]
[350020512,1737571839316,-500.0,0.0001918,2]
[350020513,1737571839325,-500.0,0.0001918,2]
[350020514,1737571839336,-500.0,0.0001918,2]
[350020515,1737571839345,-500.0,0.0001918,2]
[350020516,1737571839355,-500.0,0.0001918,2]
[350020517,1737571839365,-500.0,0.0001918,2]
[350020518,1737571839375,-500.0,0.0001918,2]
[350020519,1737571839384,-500.0,0.0001918,2]
[350020520,1737571839394,-178.16431219,0.0001918,2]
[350020521,1737571839403,-500.0,0.0001918,2]
[350020522,1737571839413,-548.29007036,0.0001918,2]
[350020523,1737571839422,-500.0,0.0001918,2]
[350020524,1737571839431,-500.0,0.0001918,2]
[350020525,1737571839441,-500.0,0.0001918,2]
[350020526,1737571839451,-500.0,0.0001918,2]
[350020527,1737571839460,-500.0,0.0001918,2]
[350020528,1737571839470,-281.89455399,0.0001918,2]
[350020529,1737571839479,-500.0,0.0001918,2]
[350020530,1737571839488,-500.0,0.0001918,2]
[350020531,1737571839498,-500.0,0.0001918,2]
[350020532,1737571839507,-500.0,0.0001918,2]
[350020533,1737571839516,-500.0,0.0001918,2]
[350020534,1737571839525,-500.0,0.0001918,2]
[350020535,1737571839534,-500.0,0.0001918,2]
[350020536,1737571839544,-500.0,0.0001918,2]
[350020537,1737571839553,-500.0,0.0001918,2]
[350020538,1737571839562,-500.0,0.0001918,2]
[350020540,1737571839571,-500.0,0.0001918,2]
[350020541,1737571839581,-500.0,0.0001918,2]
[350020542,1737571839590,-500.0,0.0001918,2]
[350020543,1737571839601,-500.0,0.0001918,2]
[350020544,1737571839610,-500.0,0.0001918,2]
[350020545,1737571839620,-500.0,0.0001918,2]
[350020546,1737571839630,-500.0,0.0001918,2]
[350020547,1737571839639,-500.0,0.0001918,2]
[350020548,1737571839648,-500.0,0.0001918,2]
[350020549,1737571839658,-500.0,0.0001918,2]
[350020550,1737571839667,-500.0,0.0001918,2]
[350020551,1737571839677,-500.0,0.0001918,2]
[350020552,1737571839686,-500.0,0.0001918,2]
[350020553,1737571839695,-500.0,0.0001918,2]
[350020554,1737571839705,-500.0,0.0001918,2]
[350020555,1737571839715,-500.0,0.0001918,2]
[350020556,1737571839724,-500.0,0.0001918,2]
[350020558,1737571839734,-500.0,0.0001918,2]
[350020560,1737571839754,-500.0,0.0001918,2]
[350020562,1737571839764,-500.0,0.0001918,2]
[350020565,1737571839775,-500.0,0.0001918,2]
[350020567,1737571839785,-500.0,0.0001918,2]
[350020569,1737571839795,-500.0,0.0001918,2]
[350020571,1737571839805,-500.0,0.0001918,2]
[350020573,1737571839816,-500.0,0.0001918,2]
[350020575,1737571839825,-500.0,0.0001918,2]
[350020577,1737571839835,-500.0,0.0001918,2]
[350020579,1737571839845,-500.0,0.0001918,2]
[350020581,1737571839855,-282.0965136,0.0001918,2]
[350020583,1737571839865,-500.0,0.0001918,2]
[350020586,1737571839875,-500.0,0.0001918,2]
[350020588,1737571839885,-500.0,0.0001918,2]
[350020590,1737571839895,-466.01639467,0.0001918,2]
[350020593,1737571839918,-86.96755438,0.0001918,2]
[350020595,1737571839928,-500.0,0.0001918,2]
[350020597,1737571839937,-413.03244562,0.0001918,2]
[350020599,1737571839949,-86.96755438,0.0001918,2]
[350020601,1737571839958,-500.0,0.0001918,2]
[350020603,1737571839968,-500.0,0.0001918,2]
[350020606,1737571839978,-500.0,0.0001918,2]
[350020608,1737571839988,-500.0,0.0001918,2]
[350020610,1737571839998,-500.0,0.0001918,2]
[350020612,1737571840008,-500.0,0.0001918,2]
[350020614,1737571840018,-1057.49444648,0.00019181,2]
[350020616,1737571840027,-1057.49444648,0.00019215,2]
[350020618,1737571840037,-302.8788636,0.00019218,2]
[350020620,1737571840046,-771.01,0.00019312,3]
[350020622,1737571840057,-240.62769819,0.00019314,2]
[350020623,1737571840071,-771.01,0.00019314,3]
[350020624,1737571840081,-771.01,0.00019314,3]
[350020625,1737571840091,-771.01,0.00019314,3]
[350020626,1737571840100,-771.01,0.00019314,3]
[350020627,1737571840110,-771.01,0.00019314,3]
[350020628,1737571840120,-771.01,0.00019314,3]
[350020629,1737571840130,-771.01,0.00019314,3]
[350020630,1737571840140,-500.0,0.00019315,3]
[350020631,1737571840150,-500.0,0.00019315,3]
[350020632,1737571840159,-500.0,0.00019315,3]
[350020633,1737571840170,-500.0,0.00019315,3]
[350020634,1737571840180,-628.21,0.00019315,3]
[350020635,1737571840190,-500.0,0.00019315,3]
[350020636,1737571840200,-690.55,0.00019315,3]
[350020637,1737571840210,-500.0,0.00019315,3]
[350020638,1737571840220,-403.46389502,0.00019315,3]
[350020640,1737571840230,-500.0,0.00019315,3]
[350020642,1737571840240,-798.92,0.00019315,3]
[350020644,1737571840250,-500.0,0.00019315,3]
[350020646,1737571840259,-642.66,0.00019315,3]
[350020647,1737571840269,-500.0,0.00019315,3]
[350020648,1737571840278,-605.78,0.00019315,3]
[350020649,1737571840288,-500.0,0.00019315,3]
[350020650,1737571840298,-500.0,0.00019315,3]
[350020651,1737571840308,-500.0,0.00019315,3]
[350020652,1737571840317,-500.0,0.00019315,3]
[350020653,1737571840327,-500.0,0.00019315,3]
[350020654,1737571840336,-500.0,0.00019315,3]
[350020655,1737571840346,-500.0,0.00019315,3]
[350020656,1737571840355,-574.2,0.00019315,3]
[350020657,1737571840365,-500.0,0.00019315,3]
[350020658,1737571840375,-500.0,0.00019315,3]
[350020659,1737571840384,-603.17,0.00019315,3]
[350020660,1737571840394,-500.0,0.00019315,3]
[350020661,1737571840403,-500.0,0.00019315,3]
[350020662,1737571840413,-932.22,0.00019315,2]
[350020663,1737571840422,-1953.73,0.00019315,3]
[350020664,1737571840432,-500.0,0.00019315,3]
[350020665,1737571840442,-500.0,0.00019315,3]
[350020666,1737571840451,-864.73,0.00019315,3]
[350020667,1737571840461,-504.1,0.00019315,3]
[350020668,1737571840471,-500.0,0.00019315,2]
[350020669,1737571840480,-959.38,0.00019315,3]
[350020670,1737571840490,-3250.23,0.00019315,3]
[350020671,1737571840500,-500.0,0.00019315,3]
[350020672,1737571840509,-502.39,0.00019315,3]
[350020673,1737571840518,-18453.22,0.00019315,3]
[350020674,1737571840528,-500.0,0.00019315,3]
[350020675,1737571840537,-500.0,0.00019315,3]
[350020676,1737571840547,-500.0,0.00019315,3]
[350020677,1737571840557,-858.51,0.00019315,3]
[350020678,1737571840567,-500.0,0.00019315,3]
[350020679,1737571840577,-500.0,0.00019315,3]
[350020680,1737571840691,-5161.12,0.00019315,3]
[350020681,1737571840702,-596.5,0.00019315,3]
[350020682,1737571840711,-500.0,0.00019315,3]
[350020683,1737571840721,-43.92406214,0.00019315,3]
[350020684,1737571840735,-456.07593786,0.00019315,3]
[350020685,1737571840745,-1767.64,0.00019315,3]
[350020686,1737571840755,-523.92,0.00019315,3]
[350020687,1737571840764,-511.06,0.00019315,3]
[350020688,1737571840774,-500.0,0.00019315,3]
[350020689,1737571840783,-9146.24,0.00019315,3]
[350020690,1737571840793,-1035.32,0.00019315,3]
[350020691,1737571840803,-2633.82,0.00019315,3]
[350020692,1737571840814,-1535.42,0.00019315,3]
[350020693,1737571840824,-2155.95,0.00019315,3]
[350020694,1737571840833,-982.52,0.00019315,3]
[350020695,1737571840843,-500.0,0.00019315,3]
[350020696,1737571840852,-890.96,0.00019315,3]
[350020697,1737571840862,-969.9,0.00019315,3]
[350020698,1737571840872,-500.0,0.00019315,3]
[350020699,1737571840881,-500.0,0.00019315,3]
[350020700,1737571840891,-744.65,0.00019315,3]
[350020701,1737571840901,-501.09,0.00019315,3]
[350020702,1737571840911,-707.9,0.00019315,3]
[350020703,1737571840921,-42095.41,0.00019315,3]
[350020704,1737571840931,-1146.81,0.00019315,3]
[350020705,1737571840940,-500.0,0.00019315,3]
[350020706,1737571840950,-500.0,0.00019315,3]
[350020707,1737571840959,-500.0,0.00019315,3]
[350020708,1737571840968,-1995.08,0.00019315,3]
[350020709,1737571840978,-1275.83,0.00019315,3]
[350020710,1737571840987,-500.0,0.00019315,3]
[350020711,1737571840997,-1398.45,0.00019315,3]
[350020712,1737571841007,-658.47,0.00019315,3]
[350020713,1737571841017,-500.0,0.00019315,3]
[350020714,1737571841026,-500.0,0.00019315,3]
[350020715,1737571841037,-1788.12,0.00019315,3]
[350020716,1737571841046,-7518.65,0.00019315,3]
[350020717,1737571841057,-1657.53,0.00019315,3]
[350020718,1737571841070,-841.93,0.00019315,3]
[350020719,1737571841079,-302.71386295,0.00019411,2]
[350020720,1737571841089,-771.01,0.00019451,3]
[350020721,1737571841099,-771.01,0.00019451,3]
[350020722,1737571841109,-771.01,0.00019451,3]
[350020723,1737571841118,-771.01,0.00019451,3]
[350020724,1737571841127,-771.01,0.00019451,3]
[350020725,1737571841137,-771.01,0.00019451,3]
[350020726,1737571841146,-771.01,0.00019451,3]
[350020727,1737571841156,-771.01,0.00019451,3]
[350020728,1737571841165,-771.1,0.00019451,3]
[350020729,1737571841175,-500.0,0.00019452,3]
[350020730,1737571841185,-500.0,0.00019452,3]
[350020731,1737571841195,-500.0,0.00019452,3]
[350020732,1737571841205,-500.0,0.00019452,3]
[350020733,1737571841215,-628.21,0.00019452,3]
[350020734,1737571841226,-500.0,0.00019452,3]
[350020735,1737571841236,-690.55,0.00019452,3]
[350020736,1737571841246,-500.0,0.00019452,3]
[350020737,1737571841255,-500.0,0.00019452,3]
[350020738,1737571841266,-798.92,0.00019452,3]
[350020739,1737571841275,-357.68754236,0.00019452,3]
[350020740,1737571841449,-1260.58804584,0.00017881,2]
[350020741,1737571841460,-862.11612939,0.00017881,2]
[350020742,1737571841470,-142.31245764,0.00019452,3]
[350020743,1737571841480,-518.42939754,0.00019452,3]
[350020783,1737571842913,-124.23060246,0.00019452,3]
[350020785,1737571842923,-500.0,0.00019452,3]
[350020787,1737571842932,-312.72939754,0.00019452,3]
[350020798,1737571843023,-293.05060246,0.00019452,3]
[350020800,1737571843032,-500.0,0.00019452,3]
[350020802,1737571843042,-500.0,0.00019452,3]
[350020804,1737571843051,-500.0,0.00019452,3]
[350020806,1737571843064,-500.0,0.00019452,3]
[350020808,1737571843074,-500.0,0.00019452,3]
[350020810,1737571843083,-500.0,0.00019452,3]
[350020812,1737571843092,-500.0,0.00019452,3]
[350020814,1737571843102,-574.2,0.00019452,3]
[350020816,1737571843113,-500.0,0.00019452,3]
[350020818,1737571843123,-500.0,0.00019452,3]
[350020820,1737571843132,-603.17,0.00019452,3]
[350020822,1737571843142,-500.0,0.00019452,3]
[350020824,1737571843151,-500.0,0.00019452,3]
[350020826,1737571843160,-932.22,0.00019452,2]
[350020828,1737571843170,-1953.73,0.00019452,3]
[350020830,1737571843179,-500.0,0.00019452,3]
[350020832,1737571843187,-279.6547866,0.00019452,3]
[350020835,1737571843199,-220.3452134,0.00019452,3]
[350020837,1737571843209,-864.73,0.00019452,3]
[350020839,1737571843218,-504.1,0.00019452,3]
[350020841,1737571843227,-500.0,0.00019452,2]
[350020843,1737571843238,-959.38,0.00019452,3]
[350020845,1737571843247,-3250.23,0.00019452,3]
[350020847,1737571843256,-500.0,0.00019452,3]
[350020849,1737571843265,-502.39,0.00019452,3]
[350020851,1737571843274,-5359.49962996,0.00019452,3]
[350021087,1737571845748,-500.0,0.00019178,2]
[350021089,1737571845757,-500.0,0.00019315,3]
[350021091,1737571845767,-6365.82594927,0.00019452,3]
[350021386,1737572586003,170.000428,0.00013973,2]
[350021387,1737572954119,-2043.3346342,0.00016375,2]
[350021388,1737572954144,-1950.00840922,0.0001654,2]
[350021389,1737572954174,-93.32622498,0.0001654,2]
[350021390,1737572967831,246.811513,0.00017437,2]
[350021391,1737572983107,1863.6743021,0.00017369,2]
[350021450,1737573032072,-9590.76496039,0.00017369,2]
[350021452,1737573032082,-300.0,0.00017543,2]
[350021454,1737573032091,-24900.0,0.00017544,2]
[350021455,1737573032101,-246.811513,0.00017613,2]
[350021457,1737573032110,-690.5721449,0.00017884,2]
[350021459,1737573032120,-649.1699501,0.00018441,2]
[350021461,1737573032129,-215.2533166,0.00018521,2]
[350021463,1737573032139,-154.1761492,0.00018521,2]
[350021465,1737573032149,-441.5251945,0.00018541,2]
[350021467,1737573032158,-2342.28498898,0.00018568,2]
[350021469,1737573032167,-154.1761492,0.000186,2]
[350021470,1737573032177,-215.2533166,0.000186,2]
[350021472,1737573032186,-209.9681649,0.000186,2]
[350021474,1737573032195,-303.9151133,0.00018678,2]
[350021476,1737573032205,-215.2533166,0.00018678,2]
[350021478,1737573032214,-154.1761492,0.00018678,2]
[350021480,1737573032223,-215.2533166,0.00018678,2]
[350021482,1737573032232,-362.71584611,0.000189,2]
[350021484,1737573032241,-394.44286205,0.00018903,2]
[350021486,1737573032251,-357.903,0.00019,2]
[350021487,1737573032261,-9202.87928277,0.00019092,2]
[350021490,1737573032273,-809.12636557,0.00019092,2]
[350021491,1737573032285,-420.0,0.0001915,2]
[350021493,1737573032294,-357.90726477,0.00019177,2]
[350021495,1737573032304,-500.0,0.00019177,2]
[350021497,1737573032313,-66.42237964,0.00019177,2]
[350021499,1737573032326,-394.44286205,0.00019177,2]
[350021502,1737573032338,-39.13475831,0.00019177,2]
[350021503,1737573032348,-500.0,0.00019177,2]
[350021505,1737573032357,-500.0,0.00019177,2]
[350021507,1737573032367,-298.8797006,0.00019177,2]
[350021655,1737573038042,-201.1202994,0.00019177,2]
[350021656,1737573038052,-500.0,0.00019177,2]
[350021657,1737573038062,-258.26114484,0.00019177,2]
[350021658,1737573038072,-500.0,0.00019177,2]
[350021659,1737573038081,-500.0,0.00019177,2]
[350021660,1737573038091,-500.0,0.00019177,2]
[350021661,1737573038101,-500.0,0.00019177,2]
[350021662,1737573038110,-500.0,0.00019177,2]
[350021663,1737573038119,-500.0,0.00019177,2]
[350021664,1737573038130,-500.0,0.00019177,2]
[350021665,1737573038139,-246.64346768,0.00019177,2]
[350021666,1737573038149,-500.0,0.00019177,2]
[350021667,1737573038159,-500.0,0.00019177,2]
[350021668,1737573038169,-500.0,0.00019177,2]
[350021669,1737573038178,-500.0,0.00019177,2]
[350021670,1737573038187,-500.0,0.00019177,2]
[350021671,1737573038197,-500.0,0.00019177,2]
[350021672,1737573038207,-500.0,0.00019177,2]
[350021673,1737573038219,-500.0,0.00019177,2]
[350021674,1737573038229,-347.81862136,0.00019177,2]
[350021675,1737573038239,-500.0,0.00019177,2]
[350021676,1737573038249,-500.0,0.00019177,2]
[350021677,1737573038258,-500.0,0.00019177,2]
[350021678,1737573038268,-500.0,0.00019177,2]
[350021679,1737573038277,-500.0,0.00019177,2]
[350021680,1737573038288,-500.0,0.00019177,2]
[350021681,1737573038298,-500.0,0.00019177,2]
[350021682,1737573038308,-500.0,0.00019177,2]
[350021683,1737573038318,-500.0,0.00019177,2]
[350021684,1737573038327,-500.0,0.00019177,2]
[350021685,1737573038337,-500.0,0.00019177,2]
[350021686,1737573038347,-333.41885685,0.00019177,2]
[350021687,1737573038356,-500.0,0.00019177,2]
[350021688,1737573038366,-500.0,0.00019177,2]
[350021689,1737573038376,-500.0,0.00019177,2]
[350021690,1737573038386,-500.0,0.00019177,2]
[350021691,1737573038396,-500.0,0.00019177,2]
[350021692,1737573038405,-500.0,0.00019177,2]
[350021693,1737573038415,-500.0,0.00019177,2]
[350021694,1737573038424,-500.0,0.00019177,2]
[350021695,1737573038434,-500.0,0.00019177,2]
[350021696,1737573038443,-500.0,0.00019177,2]
[350021697,1737573038453,-589.98311049,0.00019177,2]
[350021698,1737573038466,-500.0,0.00019177,2]
[350021699,1737573038476,-500.0,0.00019177,2]
[350021700,1737573038486,-500.0,0.00019177,2]
[350021701,1737573038495,-500.0,0.00019177,2]
[350021702,1737573038506,-500.0,0.00019177,2]
[350021703,1737573038515,-500.0,0.00019177,2]
[350021704,1737573038525,-500.0,0.00019177,2]
[350021705,1737573038535,-500.0,0.00019177,2]
[350021706,1737573038544,-500.0,0.00019177,2]
[350021707,1737573038554,-500.0,0.00019177,2]
[350021708,1737573038563,-500.0,0.00019177,2]
[350021709,1737573038573,-500.0,0.00019177,2]
[350021710,1737573038582,-500.0,0.00019177,2]
[350021711,1737573038591,-578.1894554,0.00019177,2]
[350021712,1737573038601,-500.0,0.00019177,2]
[350021713,1737573038610,-500.0,0.00019177,2]
[350021714,1737573038620,-500.0,0.00019177,2]
[350021715,1737573038629,-500.0,0.00019177,2]
[350021716,1737573038639,-500.0,0.00019177,2]
[350021717,1737573038650,-500.0,0.00019177,2]
[350021718,1737573038660,-500.0,0.00019177,2]
[350021719,1737573038669,-500.0,0.00019177,2]
[350021720,1737573038679,-500.0,0.00019177,2]
[350021721,1737573038690,-500.0,0.00019177,2]
[350021722,1737573038700,-210.78011549,0.00019177,2]
[350021723,1737573038710,-500.0,0.00019177,2]
[350021724,1737573038721,-500.0,0.00019177,2]
[350021725,1737573038731,-500.0,0.00019177,2]
[350021726,1737573038742,-500.0,0.00019177,2]
[350021727,1737573038753,-500.0,0.00019177,2]
[350021728,1737573038764,-500.0,0.00019177,2]
[350021729,1737573038774,-450.0,0.00019177,2]
[350021730,1737573038784,-500.0,0.00019177,2]
[350021731,1737573038794,-500.0,0.00019177,2]
[350021732,1737573038803,-500.0,0.00019177,2]
[350021733,1737573038813,-500.0,0.00019177,2]
[350021734,1737573038823,-500.0,0.00019177,2]
[350021735,1737573038832,-500.0,0.00019177,2]
[350021736,1737573038841,-500.0,0.00019177,2]
[350021737,1737573038851,-500.0,0.00019177,2]
[350021738,1737573038861,-500.0,0.00019177,2]
[350021739,1737573038870,-500.0,0.00019177,2]
[350021740,1737573038880,-500.0,0.00019177,2]
[350021741,1737573038890,-500.0,0.00019177,2]
[350021742,1737573038899,-500.0,0.00019177,2]
[350021743,1737573038909,-500.0,0.00019177,2]
[350021744,1737573038919,-500.0,0.00019177,2]
[350021745,1737573038929,-500.0,0.00019177,2]
[350021746,1737573038939,-500.0,0.00019177,2]
[350021747,1737573038949,-500.0,0.00019177,2]
[350021748,1737573038959,-1499.99999999,0.00019177,2]
[350021749,1737573038969,-500.0,0.00019177,2]
[350021750,1737573038979,-500.0,0.00019178,2]
[350021751,1737573038989,-500.0,0.00019178,2]
[350021752,1737573038999,-500.0,0.00019178,2]
[350021753,1737573039137,-500.0,0.00019178,2]
[350021754,1737573039148,-500.0,0.00019178,2]
[350021755,1737573039158,-500.0,0.00019178,2]
[350021756,1737573039168,-500.0,0.00019178,2]
[350021757,1737573039178,-500.0,0.00019178,2]
[350021758,1737573039187,-500.0,0.00019178,2]
[350021759,1737573039197,-500.0,0.00019178,2]
[350021760,1737573039207,-500.0,0.00019178,2]
[350021761,1737573039217,-500.0,0.00019178,2]
[350021762,1737573039227,-253.24366561,0.00019178,2]
[350021763,1737573039237,-500.0,0.00019178,2]
[350021764,1737573039247,-500.0,0.00019178,2]
[350021765,1737573039257,-500.0,0.00019178,2]
[350021766,1737573039266,-500.0,0.00019178,2]
[350021767,1737573039276,-500.0,0.00019178,2]
[350021768,1737573039286,-500.0,0.00019178,2]
[350021769,1737573039295,-500.0,0.00019178,2]
[350021770,1737573039305,-500.0,0.00019178,2]
[350021771,1737573039315,-500.0,0.00019178,2]
[350021772,1737573039325,-500.0,0.00019178,2]
[350021773,1737573039335,-500.0,0.00019178,2]
[350021774,1737573039345,-500.0,0.00019178,2]
[350021775,1737573039355,-500.0,0.00019178,2]
[350021776,1737573039364,-500.0,0.00019178,2]
[350021777,1737573039374,-500.0,0.00019178,2]
[350021778,1737573039383,-500.0,0.00019178,2]
[350021779,1737573039393,-500.0,0.00019178,2]
[350021780,1737573039403,-632.07,0.00019178,2]
[350021781,1737573039415,-709.77,0.00019178,2]
[350021782,1737573039426,-500.0,0.00019178,2]
[350021783,1737573039436,-500.0,0.00019178,2]
[350021784,1737573039445,-500.0,0.00019178,2]
[350021785,1737573039455,-500.0,0.00019178,2]
[350021787,1737573039469,-500.0,0.00019178,2]
[350021788,1737573039481,-746.14,0.00019178,2]
[350021790,1737573039491,-500.0,0.00019178,2]
[350021792,1737573039502,-504.21761115,0.00019178,2]
[350021793,1737573039512,-500.0,0.00019178,2]
[350021795,1737573039522,-500.0,0.00019178,2]
[350021796,1737573039532,-500.0,0.00019178,2]
[350021798,1737573039543,-500.0,0.00019178,2]
[350021800,1737573039554,-500.0,0.00019178,2]
[350021802,1737573039563,-500.0,0.00019178,2]
[350021803,1737573039574,-500.0,0.00019178,2]
[350021804,1737573039583,-500.0,0.00019178,2]
[350021805,1737573039593,-500.0,0.00019178,2]
[350021806,1737573039603,-500.0,0.00019178,2]
[350021807,1737573039613,-500.0,0.00019178,2]
[350021808,1737573039622,-562.32,0.00019178,2]
[350021809,1737573039632,-500.0,0.00019178,2]
[350021810,1737573039642,-500.0,0.00019178,2]
[350021811,1737573039651,-500.0,0.00019178,2]
[350021812,1737573039661,-500.0,0.00019178,2]
[350021813,1737573039670,-571.72,0.00019178,2]
[350021814,1737573039680,-500.0,0.00019178,2]
[350021815,1737573039690,-500.0,0.00019178,2]
[350021816,1737573039700,-500.0,0.00019178,2]
[350021817,1737573039709,-500.0,0.00019178,2]
[350021818,1737573039719,-500.0,0.00019178,2]
[350021819,1737573039728,-500.0,0.00019178,2]
[350021820,1737573039737,-500.0,0.00019178,2]
[350021821,1737573039747,-500.0,0.00019178,2]
[350021822,1737573039757,-431.31417205,0.00019178,2]
[350021823,1737573039767,-500.0,0.00019178,2]
[350021824,1737573039776,-502.43111086,0.00019178,2]
[350021825,1737573039786,-500.0,0.00019178,2]
[350021826,1737573039795,-500.0,0.00019178,2]
[350021827,1737573039804,-544.09,0.00019178,2]
[350021828,1737573039814,-500.0,0.00019178,2]
[350021829,1737573039823,-500.0,0.00019178,2]
[350021831,1737573039833,-572.08,0.00019178,2]
[350021833,1737573039842,-500.0,0.00019178,2]
[350021835,1737573039851,-500.0,0.00019178,2]
[350021837,1737573039860,-500.0,0.00019178,2]
[350021839,1737573039870,-815.69,0.00019178,2]
[350021841,1737573039879,-35340.2120107,0.00019178,2]
[350021843,1737573039894,-1476.57206632,0.00019178,2]
[350021844,1737573039906,-1770.67592298,0.00019178,2]
[350021845,1737573039916,-1169.51,0.00019178,2]
[350021846,1737573039925,-500.0,0.00019178,2]
[350021847,1737573039934,-603.6,0.00019178,2]
[350021848,1737573039943,-339.16783188,0.00019178,2]
[350021849,1737573039952,-500.0,0.00019178,2]
[350021850,1737573039962,-500.0,0.00019178,2]
[350021851,1737573039971,-500.0,0.00019178,2]
[350021852,1737573039981,-500.0,0.00019178,2]
[350021854,1737573039991,-500.0,0.00019178,2]
[350021856,1737573040000,-500.0,0.00019178,2]
[350021858,1737573040010,-266.1,0.00019178,2]
[350021860,1737573040019,-500.0,0.00019178,2]
[350021862,1737573040028,-771.77,0.00019178,2]
[350021863,1737573040039,-6892.1,0.00019178,2]
[350021865,1737573040048,-1914.73,0.00019178,2]
[350021867,1737573040059,-1519.4,0.00019178,2]
[350021869,1737573040069,-500.0,0.00019178,2]
[350021871,1737573040078,-328.44599756,0.00019178,2]
[350022244,1737573046226,-2642.91400244,0.00019178,2]
[350022246,1737573046236,-858.26,0.00019178,2]
[350022248,1737573046246,-500.0,0.00019178,2]
[350022250,1737573046256,-820.04,0.00019178,2]
[350022252,1737573046265,-500.0,0.00019178,2]
[350022254,1737573046274,-500.0,0.00019178,2]
[350022256,1737573046284,-500.0,0.00019178,2]
[350022258,1737573046293,-500.0,0.00019178,2]
[350022259,1737573046303,-500.0,0.00019178,2]
[350022261,1737573046313,-878.6,0.00019178,2]
[350022263,1737573046323,-500.0,0.00019178,2]
[350022265,1737573046333,-500.0,0.00019178,2]
[350022269,1737573046342,-500.0,0.00019178,2]
[350022272,1737573046352,-2658.7,0.00019178,2]
[350022275,1737573046361,-17085.15,0.00019178,2]
[350022278,1737573046371,-500.0,0.00019178,2]
[350022280,1737573046380,-1686.62,0.00019178,2]
[350022282,1737573046390,-809.91,0.00019178,2]
[350022284,1737573046399,-500.0,0.00019178,2]
[350022286,1737573046409,-1830.26173035,0.00019178,2]
[350022289,1737573046425,-660.32826965,0.00019178,2]
[350022291,1737573046435,-989.09,0.00019178,2]
[350022293,1737573046444,-500.0,0.00019178,2]
[350022295,1737573046454,-500.0,0.00019178,2]
[350022297,1737573046467,-500.0,0.00019178,2]
[350022299,1737573046477,-2050.92,0.00019178,2]